[Event "*** Titled Tuesday Blitz"]
[Site "Chess.com"]
[Date "2020.11.10"]
[Round "11"]
[White "RaunakSadhwani2005"]
[Black "LyonBeast"]
[Result "1/2-1/2"]
[WhiteElo "3016"]
[BlackElo "3074"]
[TimeControl "180+1"]
[EndTime "12:13:30 PST"]
[Termination "Game drawn by repetition"]

1. e4 {[%clk 0:03:00.9]} 1... c5 {[%clk 0:02:59.7]} 2. Nf3 {[%clk 0:03:01.2]}
2... d6 {[%clk 0:03:00.1]} 3. d4 {[%clk 0:03:00]} 3... cxd4 {[%clk 0:03:01]} 4.
Nxd4 {[%clk 0:03:00.9]} 4... Nf6 {[%clk 0:03:01.6]} 5. Nc3 {[%clk 0:02:57.7]}
5... a6 {[%clk 0:03:02]} 6. Be3 {[%clk 0:02:56.9]} 6... e5 {[%clk 0:02:57]} 7.
Nf3 {[%clk 0:02:56.1]} 7... Be7 {[%clk 0:02:55.2]} 8. Bc4 {[%clk 0:02:53.8]}
8... O-O {[%clk 0:02:54.3]} 9. O-O {[%clk 0:02:51.3]} 9... Be6 {[%clk 0:02:49]}
10. Bxe6 {[%clk 0:02:34.1]} 10... fxe6 {[%clk 0:02:49.9]} 11. Na4 {[%clk
0:02:32.8]} 11... Ng4 {[%clk 0:02:42.7]} 12. Qd3 {[%clk 0:02:33.1]} 12... Nxe3
{[%clk 0:02:42.9]} 13. Qxe3 {[%clk 0:02:34]} 13... b5 {[%clk 0:02:43.2]} 14. Nb6
{[%clk 0:02:30.6]} 14... Ra7 {[%clk 0:02:43.6]} 15. Nd5 {[%clk 0:02:26.9]} 15...
Rb7 {[%clk 0:02:41.5]} 16. Qd3 {[%clk 0:02:24.7]} 16... Nc6 {[%clk 0:02:21.6]}
17. a4 {[%clk 0:02:20.2]} 17... Qd7 {[%clk 0:02:07.6]} 18. axb5 {[%clk 0:02:16]}
18... axb5 {[%clk 0:02:08.5]} 19. Nxe7+ {[%clk 0:02:16.4]} 19... Nxe7 {[%clk
0:02:09]} 20. Rfd1 {[%clk 0:02:10.6]} 20... Nc8 {[%clk 0:02:09.5]} 21. Nxe5
{[%clk 0:02:07.4]} 21... Qc7 {[%clk 0:02:10]} 22. Nf3 {[%clk 0:02:05.7]} 22...
Qc5 {[%clk 0:02:05.6]} 23. c3 {[%clk 0:02:02.7]} 23... b4 {[%clk 0:02:06]} 24.
c4 {[%clk 0:01:58.2]} 24... h6 {[%clk 0:01:58.5]} 25. b3 {[%clk 0:01:54.5]}
25... Rbf7 {[%clk 0:01:56.3]} 26. Ra6 {[%clk 0:01:40.9]} 26... Qh5 {[%clk
0:01:52.3]} 27. Qe2 {[%clk 0:01:32.1]} 27... Ne7 {[%clk 0:01:51]} 28. Raxd6
{[%clk 0:01:17.8]} 28... Ng6 {[%clk 0:01:34.9]} 29. Qf1 {[%clk 0:01:07.1]} 29...
Rxf3 {[%clk 0:01:23.2]} 30. gxf3 {[%clk 0:01:06.2]} 30... Nh4 {[%clk 0:01:21.7]}
31. R1d3 {[%clk 0:00:57]} 31... Nxf3+ {[%clk 0:01:13.2]} 32. Rxf3 {[%clk
0:00:55.7]} 32... Rxf3 {[%clk 0:01:13.2]} 33. Qd1 {[%clk 0:00:49.8]} 33... Qg6+
{[%clk 0:01:11.6]} 34. Kf1 {[%clk 0:00:45]} 34... Rh3 {[%clk 0:01:07.1]} 35. Qd5
{[%clk 0:00:28.7]} 35... exd5 {[%clk 0:00:47.7]} 36. Rxg6 {[%clk 0:00:29.6]}
36... dxe4 {[%clk 0:00:48.6]} 37. Re6 {[%clk 0:00:18.1]} 37... Rxb3 {[%clk
0:00:43.8]} 38. Rxe4 {[%clk 0:00:17.4]} 38... Rc3 {[%clk 0:00:41.3]} 39. c5
{[%clk 0:00:16.3]} 39... b3 {[%clk 0:00:41.4]} 40. Rb4 {[%clk 0:00:13.6]} 40...
Kf7 {[%clk 0:00:41.7]} 41. Ke2 {[%clk 0:00:12.8]} 41... Ke6 {[%clk 0:00:38.8]}
42. Kd2 {[%clk 0:00:11.6]} 42... Rc2+ {[%clk 0:00:39.2]} 43. Kd3 {[%clk
0:00:09.6]} 43... Rxf2 {[%clk 0:00:38.9]} 44. Rxb3 {[%clk 0:00:08.5]} 44... Rxh2
{[%clk 0:00:34.2]} 45. Rb6+ {[%clk 0:00:07.6]} 45... Kf5 {[%clk 0:00:30]} 46. c6
{[%clk 0:00:06.3]} 46... Rh1 {[%clk 0:00:28]} 47. Kd2 {[%clk 0:00:06]} 47...
Rh2+ {[%clk 0:00:25.4]} 48. Kd3 {[%clk 0:00:06.2]} 48... Rh1 {[%clk 0:00:25.5]}
49. Kd2 {[%clk 0:00:05.7]} 49... Rh4 {[%clk 0:00:19.2]} 50. Kd3 {[%clk
0:00:05.9]} 50... Rh1 {[%clk 0:00:12.8]} 1/2-1/2

[Event "*** Titled Tuesday Blitz"]
[Site "Chess.com"]
[Date "2020.11.10"]
[Round "11"]
[White "ShapkinAnatoliy"]
[Black "Msb2"]
[Result "1-0"]
[WhiteElo "2655"]
[BlackElo "2868"]
[TimeControl "180+1"]
[EndTime "12:13:39 PST"]
[Termination "ShapkinAnatoliy won by resignation"]

1. d4 {[%clk 0:03:00.9]} 1... Nf6 {[%clk 0:03:00.1]} 2. c4 {[%clk 0:02:57.6]}
2... e6 {[%clk 0:03:00.3]} 3. g3 {[%clk 0:02:57.6]} 3... Bb4+ {[%clk 0:03:00.5]}
4. Bd2 {[%clk 0:02:57.4]} 4... a5 {[%clk 0:03:01.2]} 5. Bg2 {[%clk 0:02:57.1]}
5... d5 {[%clk 0:03:01.9]} 6. Nf3 {[%clk 0:02:57.4]} 6... O-O {[%clk 0:03:02]}
7. O-O {[%clk 0:02:57.8]} 7... dxc4 {[%clk 0:03:01.9]} 8. Bg5 {[%clk 0:02:54.2]}
8... h6 {[%clk 0:03:02.1]} 9. Bxf6 {[%clk 0:02:53.9]} 9... Qxf6 {[%clk 0:03:03]}
10. a3 {[%clk 0:02:53.9]} 10... Bd6 {[%clk 0:03:03.1]} 11. Nc3 {[%clk
0:02:54.5]} 11... c6 {[%clk 0:03:01.8]} 12. e3 {[%clk 0:02:46.4]} 12... b5
{[%clk 0:02:59.4]} 13. Nd2 {[%clk 0:02:41.5]} 13... Ra7 {[%clk 0:02:58.5]} 14.
Nce4 {[%clk 0:02:21.7]} 14... Qe7 {[%clk 0:02:57.1]} 15. Qc2 {[%clk 0:02:06.4]}
15... Na6 {[%clk 0:02:42.4]} 16. Nxd6 {[%clk 0:01:40.2]} 16... Qxd6 {[%clk
0:02:43.3]} 17. b3 {[%clk 0:01:40.8]} 17... cxb3 {[%clk 0:02:28.7]} 18. Nxb3
{[%clk 0:01:40.6]} 18... a4 {[%clk 0:02:29.3]} 19. Nc5 {[%clk 0:01:35.9]} 19...
Nxc5 {[%clk 0:02:29.5]} 20. dxc5 {[%clk 0:01:36.5]} 20... Qc7 {[%clk 0:02:19.5]}
21. Rfd1 {[%clk 0:01:34.4]} 21... Bb7 {[%clk 0:02:17.7]} 22. Rd6 {[%clk
0:01:32.2]} 22... Qa5 {[%clk 0:02:17.1]} 23. Qb2 {[%clk 0:01:26.3]} 23... Rc8
{[%clk 0:02:12.1]} 24. Rad1 {[%clk 0:01:25.9]} 24... b4 {[%clk 0:02:11.7]} 25.
Qxb4 {[%clk 0:01:21.2]} 25... Qxb4 {[%clk 0:02:11.6]} 26. axb4 {[%clk
0:01:22.1]} 26... a3 {[%clk 0:02:11.4]} 27. Ra1 {[%clk 0:01:12.9]} 27... a2
{[%clk 0:02:01.1]} 28. Rd7 {[%clk 0:01:03.9]} 28... Kf8 {[%clk 0:00:33.7]} 29.
b5 {[%clk 0:00:59.6]} 29... Ke8 {[%clk 0:00:33.4]} 30. bxc6 {[%clk 0:00:54.4]}
30... Ra5 {[%clk 0:00:23.9]} 31. Rxb7 {[%clk 0:00:35.4]} 31... g5 {[%clk
0:00:20.9]} 32. Rb2 {[%clk 0:00:27.4]} 32... Rca8 {[%clk 0:00:19]} 33. c7 {[%clk
0:00:26.6]} 33... Rc8 {[%clk 0:00:19.3]} 34. Rbxa2 {[%clk 0:00:26]} 34... Rxc5
{[%clk 0:00:19.9]} 35. Ra8 {[%clk 0:00:23.3]} 35... Kd7 {[%clk 0:00:17.5]} 36.
Rxc8 {[%clk 0:00:22]} 36... Kxc8 {[%clk 0:00:18.4]} 37. Ra8+ {[%clk 0:00:17.8]}
37... Kxc7 {[%clk 0:00:18.9]} 38. Ra7+ {[%clk 0:00:18.5]} 38... Kd6 {[%clk
0:00:19.4]} 39. Rxf7 {[%clk 0:00:19.1]} 39... g4 {[%clk 0:00:18.8]} 40. Bf1
{[%clk 0:00:17.7]} 40... h5 {[%clk 0:00:17.9]} 41. Kg2 {[%clk 0:00:18]} 41...
Ra5 {[%clk 0:00:17.5]} 42. h3 {[%clk 0:00:18.1]} 42... Ra4 {[%clk 0:00:14.9]}
43. hxg4 {[%clk 0:00:18]} 43... hxg4 {[%clk 0:00:15.8]} 44. Rf4 {[%clk 0:00:18]}
44... Ra2 {[%clk 0:00:15.6]} 45. Rxg4 {[%clk 0:00:17.9]} 45... Ke5 {[%clk
0:00:16.5]} 46. Rf4 {[%clk 0:00:18]} 46... Rb2 {[%clk 0:00:16]} 47. g4 {[%clk
0:00:18.1]} 47... Kd6 {[%clk 0:00:16.4]} 48. Kf3 {[%clk 0:00:18.1]} 48... e5
{[%clk 0:00:17.3]} 49. Ra4 {[%clk 0:00:17.7]} 49... Ke6 {[%clk 0:00:17.7]} 50.
Bd3 {[%clk 0:00:17.4]} 50... Kf6 {[%clk 0:00:18]} 51. Be4 {[%clk 0:00:17.8]}
51... Kg5 {[%clk 0:00:18.3]} 52. Ra6 {[%clk 0:00:17.2]} 52... Rb8 {[%clk
0:00:13.5]} 53. Kg3 {[%clk 0:00:12.7]} 53... Rg8 {[%clk 0:00:06.7]} 54. f4+
{[%clk 0:00:12]} 1-0

[Event "*** Titled Tuesday Blitz"]
[Site "Chess.com"]
[Date "2020.11.10"]
[Round "11"]
[White "mirciulica14"]
[Black "Chessalary"]
[Result "0-1"]
[WhiteElo "2623"]
[BlackElo "2491"]
[TimeControl "180+1"]
[EndTime "12:13:39 PST"]
[Termination "Chessalary won by checkmate"]

1. d4 {[%clk 0:03:00.9]} 1... d5 {[%clk 0:03:00]} 2. c4 {[%clk 0:03:00.9]} 2...
e6 {[%clk 0:03:00.3]} 3. Nf3 {[%clk 0:03:00.7]} 3... c6 {[%clk 0:03:00.7]} 4.
Nc3 {[%clk 0:02:58.6]} 4... Nf6 {[%clk 0:02:58.9]} 5. Bg5 {[%clk 0:02:58.2]}
5... Be7 {[%clk 0:02:59.5]} 6. e3 {[%clk 0:02:56.5]} 6... O-O {[%clk 0:02:59.7]}
7. Qc2 {[%clk 0:02:55.3]} 7... h6 {[%clk 0:02:59.5]} 8. Bh4 {[%clk 0:02:54.6]}
8... dxc4 {[%clk 0:02:58.6]} 9. Bxc4 {[%clk 0:02:54.1]} 9... b5 {[%clk
0:02:58.8]} 10. Be2 {[%clk 0:02:48.6]} 10... Bb7 {[%clk 0:02:56.4]} 11. O-O
{[%clk 0:02:48.2]} 11... a6 {[%clk 0:02:56.1]} 12. Rfd1 {[%clk 0:02:42.5]} 12...
Nbd7 {[%clk 0:02:55.8]} 13. e4 {[%clk 0:02:31.6]} 13... Qc7 {[%clk 0:02:55.2]}
14. Bg3 {[%clk 0:02:30.3]} 14... Qb6 {[%clk 0:02:53.3]} 15. Rac1 {[%clk
0:02:23]} 15... Rac8 {[%clk 0:02:50.6]} 16. e5 {[%clk 0:01:56.3]} 16... Nd5
{[%clk 0:02:49.2]} 17. Nxd5 {[%clk 0:01:56.8]} 17... cxd5 {[%clk 0:02:46.3]} 18.
Qb3 {[%clk 0:01:52.4]} 18... Qa5 {[%clk 0:02:36.6]} 19. Bf4 {[%clk 0:01:43.9]}
19... Nb6 {[%clk 0:02:31.8]} 20. Bd2 {[%clk 0:01:35.3]} 20... Qa4 {[%clk
0:02:14.6]} 21. Qxa4 {[%clk 0:01:31.8]} 21... bxa4 {[%clk 0:01:52.4]} 22. b3
{[%clk 0:01:21.1]} 22... axb3 {[%clk 0:01:51]} 23. axb3 {[%clk 0:01:21.1]} 23...
g5 {[%clk 0:01:38.7]} 24. Ba5 {[%clk 0:01:19.3]} 24... Nd7 {[%clk 0:01:34.8]}
25. Ne1 {[%clk 0:01:05.6]} 25... Ba3 {[%clk 0:01:29.7]} 26. Ra1 {[%clk
0:01:02.9]} 26... Bb2 {[%clk 0:01:21.5]} 27. Ra2 {[%clk 0:00:51.9]} 27... Bc3
{[%clk 0:01:20.8]} 28. b4 {[%clk 0:00:34.3]} 28... Nb8 {[%clk 0:01:13.8]} 29. b5
{[%clk 0:00:07.7]} 29... axb5 {[%clk 0:01:07.5]} 30. Bxb5 {[%clk 0:00:07.2]}
30... Bxa5 {[%clk 0:01:01.1]} 31. Rxa5 {[%clk 0:00:08.1]} 31... Nc6 {[%clk
0:01:00.6]} 32. Ra4 {[%clk 0:00:08.6]} 32... Ne7 {[%clk 0:00:54.3]} 33. g4
{[%clk 0:00:07.3]} 33... Bc6 {[%clk 0:00:52.2]} 34. Rb1 {[%clk 0:00:05.7]} 34...
Bxb5 {[%clk 0:00:51.5]} 35. Rxb5 {[%clk 0:00:06.6]} 35... Rc1 {[%clk 0:00:50.9]}
36. Kf1 {[%clk 0:00:06.3]} 36... Ng6 {[%clk 0:00:50.8]} 37. Rab4 {[%clk
0:00:04.8]} 37... Nf4 {[%clk 0:00:48.2]} 38. Rb1 {[%clk 0:00:05.3]} 38... Rfc8
{[%clk 0:00:44]} 39. f3 {[%clk 0:00:05.6]} 39... Nd3 {[%clk 0:00:38.9]} 40. Rb8
{[%clk 0:00:01.3]} 40... Rxe1+ {[%clk 0:00:37.8]} 41. Rxe1 {[%clk 0:00:01.2]}
41... Rxb8 {[%clk 0:00:38.1]} 42. Rd1 {[%clk 0:00:02.1]} 42... Nf4 {[%clk
0:00:37.9]} 43. Rc1 {[%clk 0:00:02.7]} 43... Rb2 {[%clk 0:00:37.2]} 44. Rc8+
{[%clk 0:00:02.8]} 44... Kg7 {[%clk 0:00:37.5]} 45. Kg1 {[%clk 0:00:03.7]} 45...
Ne2+ {[%clk 0:00:34.1]} 46. Kh1 {[%clk 0:00:04]} 46... Nxd4 {[%clk 0:00:33.5]}
47. Rc3 {[%clk 0:00:04.4]} 47... Ne2 {[%clk 0:00:32.5]} 48. Re3 {[%clk
0:00:04.4]} 48... Nf4 {[%clk 0:00:32.4]} 49. Kg1 {[%clk 0:00:05.2]} 49... d4
{[%clk 0:00:32.2]} 50. Re4 {[%clk 0:00:05.4]} 50... d3 {[%clk 0:00:32.1]} 51.
Kf1 {[%clk 0:00:05.2]} 51... d2 {[%clk 0:00:31.8]} 52. Rd4 {[%clk 0:00:05.9]}
52... Rb1+ {[%clk 0:00:29.1]} 53. Kf2 {[%clk 0:00:06.6]} 53... d1=Q {[%clk
0:00:29.1]} 54. Rxd1 {[%clk 0:00:07.5]} 54... Rxd1 {[%clk 0:00:29.7]} 55. h4
{[%clk 0:00:08.4]} 55... gxh4 {[%clk 0:00:28]} 56. Ke3 {[%clk 0:00:09]} 56... h3
{[%clk 0:00:28.5]} 57. g5 {[%clk 0:00:09.9]} 57... Nd5+ {[%clk 0:00:24.5]} 58.
Ke4 {[%clk 0:00:09.2]} 58... hxg5 {[%clk 0:00:23]} 59. f4 {[%clk 0:00:09.5]}
59... h2 {[%clk 0:00:21.1]} 60. f5 {[%clk 0:00:10.4]} 60... h1=Q# {[%clk
0:00:21.3]} 0-1

[Event "*** Titled Tuesday Blitz"]
[Site "Chess.com"]
[Date "2020.11.10"]
[Round "11"]
[White "Lady_Nika"]
[Black "Brave_spirit12"]
[Result "0-1"]
[WhiteElo "2364"]
[BlackElo "2479"]
[TimeControl "180+1"]
[EndTime "12:13:39 PST"]
[Termination "Brave_spirit12 won by checkmate"]

1. d4 {[%clk 0:03:00.9]} 1... Nf6 {[%clk 0:02:58]} 2. e3 {[%clk 0:03:00.3]} 2...
e6 {[%clk 0:02:57.7]} 3. Bd3 {[%clk 0:03:00]} 3... d5 {[%clk 0:02:57.6]} 4. f4
{[%clk 0:03:00.2]} 4... c5 {[%clk 0:02:57.6]} 5. c3 {[%clk 0:02:59.8]} 5... Nc6
{[%clk 0:02:56.9]} 6. Nf3 {[%clk 0:03:00.1]} 6... Bd6 {[%clk 0:02:55.8]} 7. O-O
{[%clk 0:02:59.7]} 7... O-O {[%clk 0:02:54.8]} 8. Ne5 {[%clk 0:03:00]} 8... Ne4
{[%clk 0:02:47.3]} 9. Nd2 {[%clk 0:02:55.8]} 9... f5 {[%clk 0:02:45.9]} 10. Rf3
{[%clk 0:02:55.6]} 10... Bxe5 {[%clk 0:02:38.5]} 11. fxe5 {[%clk 0:02:49.1]}
11... Bd7 {[%clk 0:02:35.7]} 12. Rh3 {[%clk 0:02:47.3]} 12... cxd4 {[%clk
0:02:31.8]} 13. exd4 {[%clk 0:02:47.1]} 13... Nxe5 {[%clk 0:02:24.1]} 14. Bxe4
{[%clk 0:02:42.8]} 14... fxe4 {[%clk 0:02:13.5]} 15. dxe5 {[%clk 0:02:32.3]}
15... Qb6+ {[%clk 0:02:13.3]} 16. Kh1 {[%clk 0:02:32.4]} 16... Qf2 {[%clk
0:02:14.2]} 17. Qg1 {[%clk 0:02:16.4]} 17... Qe2 {[%clk 0:01:46]} 18. Re3 {[%clk
0:02:14.3]} 18... Qh5 {[%clk 0:01:44.6]} 19. Nb3 {[%clk 0:02:12.9]} 19... Bb5
{[%clk 0:01:41.2]} 20. Bd2 {[%clk 0:02:09.4]} 20... Rf7 {[%clk 0:01:38.4]} 21.
Nd4 {[%clk 0:02:09.1]} 21... Bd3 {[%clk 0:01:38.6]} 22. Rh3 {[%clk 0:02:06.1]}
22... Qxe5 {[%clk 0:01:37]} 23. Re1 {[%clk 0:02:04.4]} 23... Qd6 {[%clk
0:01:29.9]} 24. Rxd3 {[%clk 0:01:55.9]} 24... exd3 {[%clk 0:01:30.8]} 25. Rxe6
{[%clk 0:01:55.8]} 25... Qd7 {[%clk 0:01:27.5]} 26. h3 {[%clk 0:01:53.5]} 26...
Raf8 {[%clk 0:01:26.6]} 27. Re1 {[%clk 0:01:44.4]} 27... Rf2 {[%clk 0:01:21]}
28. Be3 {[%clk 0:01:44.3]} 28... Rxb2 {[%clk 0:01:19.8]} 29. Qh2 {[%clk
0:01:39.6]} 29... Re8 {[%clk 0:01:15.2]} 30. Qg3 {[%clk 0:01:28]} 30... d2
{[%clk 0:01:12.1]} 31. Rd1 {[%clk 0:01:28]} 31... Qa4 {[%clk 0:01:05]} 32. Qf3
{[%clk 0:00:58.6]} 32... Rxe3 {[%clk 0:00:32.7]} 33. Qxd5+ {[%clk 0:00:34.8]}
33... Kh8 {[%clk 0:00:30.5]} 34. Rf1 {[%clk 0:00:31.3]} 34... d1=Q {[%clk
0:00:13.1]} 35. Rxd1 {[%clk 0:00:24.6]} 35... Qxd1+ {[%clk 0:00:14]} 36. Kh2
{[%clk 0:00:24.7]} 36... Qe1 {[%clk 0:00:14]} 37. Qd8+ {[%clk 0:00:23.3]} 37...
Re8 {[%clk 0:00:13.5]} 38. Qd6 {[%clk 0:00:23]} 38... Qe5+ {[%clk 0:00:13.8]}
39. Qxe5 {[%clk 0:00:22.9]} 39... Rxe5 {[%clk 0:00:14.7]} 40. Kg3 {[%clk
0:00:23.5]} 40... Rxa2 {[%clk 0:00:15]} 41. Kf4 {[%clk 0:00:24]} 41... Rc5
{[%clk 0:00:15.5]} 42. g4 {[%clk 0:00:24.5]} 42... Rxc3 {[%clk 0:00:16]} 43. Ne6
{[%clk 0:00:25.2]} 43... Ra4+ {[%clk 0:00:16.9]} 44. Ke5 {[%clk 0:00:24]} 44...
Re3+ {[%clk 0:00:16.9]} 45. Kd6 {[%clk 0:00:24.5]} 45... Rxe6+ {[%clk
0:00:17.8]} 46. Kd7 {[%clk 0:00:24]} 46... Rxg4 {[%clk 0:00:16.3]} 47. Kc8
{[%clk 0:00:24.5]} 47... Rg3 {[%clk 0:00:16.1]} 48. Kb8 {[%clk 0:00:25]} 48...
Rxh3 {[%clk 0:00:16.5]} 49. Ka8 {[%clk 0:00:25.5]} 49... b5 {[%clk 0:00:16.5]}
50. Kb8 {[%clk 0:00:25.6]} 50... a5 {[%clk 0:00:17.4]} 51. Kc8 {[%clk
0:00:25.9]} 51... b4 {[%clk 0:00:18.3]} 52. Kd8 {[%clk 0:00:26.3]} 52... a4
{[%clk 0:00:19.2]} 53. Kd7 {[%clk 0:00:23.1]} 53... Rhe3 {[%clk 0:00:20.1]} 54.
Kd8 {[%clk 0:00:23]} 54... a3 {[%clk 0:00:21]} 55. Kd7 {[%clk 0:00:23.5]} 55...
a2 {[%clk 0:00:21.9]} 56. Kd8 {[%clk 0:00:24]} 56... a1=Q {[%clk 0:00:22.1]} 57.
Kd7 {[%clk 0:00:24.6]} 57... b3 {[%clk 0:00:23]} 58. Kc8 {[%clk 0:00:25.1]}
58... b2 {[%clk 0:00:23.9]} 59. Kd7 {[%clk 0:00:25.8]} 59... b1=Q {[%clk
0:00:24.8]} 60. Kc8 {[%clk 0:00:26.5]} 60... h5 {[%clk 0:00:25.7]} 61. Kd7
{[%clk 0:00:27.1]} 61... h4 {[%clk 0:00:26.6]} 62. Kc8 {[%clk 0:00:27.8]} 62...
h3 {[%clk 0:00:27.5]} 63. Kd7 {[%clk 0:00:28.7]} 63... h2 {[%clk 0:00:28.4]} 64.
Kc8 {[%clk 0:00:29.4]} 64... h1=Q {[%clk 0:00:28.5]} 65. Kc7 {[%clk 0:00:29.2]}
65... g5 {[%clk 0:00:28.8]} 66. Kd7 {[%clk 0:00:29.6]} 66... g4 {[%clk
0:00:29.7]} 67. Kd8 {[%clk 0:00:29.8]} 67... g3 {[%clk 0:00:30.6]} 68. Kc7
{[%clk 0:00:30.3]} 68... g2 {[%clk 0:00:31.1]} 69. Kd7 {[%clk 0:00:30.8]} 69...
g1=Q {[%clk 0:00:32]} 70. Kd8 {[%clk 0:00:31]} 70... Qhh7 {[%clk 0:00:31.7]} 71.
Kc8 {[%clk 0:00:31]} 71... Qa8# {[%clk 0:00:32]} 0-1

[Event "*** Titled Tuesday Blitz"]
[Site "Chess.com"]
[Date "2020.11.10"]
[Round "11"]
[White "tteshan"]
[Black "Gogolev_Artemy"]
[Result "0-1"]
[WhiteElo "2372"]
[BlackElo "2499"]
[TimeControl "180+1"]
[EndTime "12:13:43 PST"]
[Termination "Gogolev_Artemy won by resignation"]

1. d4 {[%clk 0:03:00.9]} 1... Nf6 {[%clk 0:02:02]} 2. c4 {[%clk 0:02:59.4]} 2...
e6 {[%clk 0:01:52.5]} 3. Nc3 {[%clk 0:02:59.7]} 3... d5 {[%clk 0:01:52]} 4. cxd5
{[%clk 0:02:58.1]} 4... exd5 {[%clk 0:01:51]} 5. Bg5 {[%clk 0:02:58.3]} 5... c6
{[%clk 0:01:38.8]} 6. e3 {[%clk 0:02:58.5]} 6... Bf5 {[%clk 0:01:39.2]} 7. Qf3
{[%clk 0:02:54.9]} 7... Bg6 {[%clk 0:01:39.5]} 8. Bxf6 {[%clk 0:02:54.7]} 8...
Qxf6 {[%clk 0:01:40.4]} 9. Qxf6 {[%clk 0:02:55]} 9... gxf6 {[%clk 0:01:41.3]}
10. Nf3 {[%clk 0:02:54.2]} 10... a5 {[%clk 0:01:41.4]} 11. h4 {[%clk 0:02:52.1]}
11... h5 {[%clk 0:01:41]} 12. Be2 {[%clk 0:02:51.1]} 12... Bd6 {[%clk
0:01:41.4]} 13. g3 {[%clk 0:02:46.6]} 13... Nd7 {[%clk 0:01:36.1]} 14. O-O
{[%clk 0:02:34.4]} 14... b5 {[%clk 0:01:36.2]} 15. a4 {[%clk 0:02:28.4]} 15...
b4 {[%clk 0:01:34.1]} 16. Na2 {[%clk 0:02:28]} 16... c5 {[%clk 0:01:28.4]} 17.
Nc1 {[%clk 0:02:22.8]} 17... c4 {[%clk 0:01:26.5]} 18. Re1 {[%clk 0:02:21]}
18... O-O-O {[%clk 0:01:21.1]} 19. Nd2 {[%clk 0:02:15]} 19... Rhe8 {[%clk
0:01:12.9]} 20. Bf3 {[%clk 0:02:14.6]} 20... Nb6 {[%clk 0:01:09.8]} 21. Ne2
{[%clk 0:02:06.5]} 21... Kd7 {[%clk 0:00:58.9]} 22. Rec1 {[%clk 0:01:48.7]}
22... Rc8 {[%clk 0:00:38.1]} 23. Bg2 {[%clk 0:01:48.5]} 23... Bd3 {[%clk
0:00:35.1]} 24. Nf4 {[%clk 0:01:35]} 24... Bxf4 {[%clk 0:00:34.6]} 25. gxf4
{[%clk 0:01:35.7]} 25... Kd6 {[%clk 0:00:32.1]} 26. Kh2 {[%clk 0:01:34.8]} 26...
f5 {[%clk 0:00:30.2]} 27. Bf3 {[%clk 0:01:33.8]} 27... Be4 {[%clk 0:00:29.3]}
28. Nxe4+ {[%clk 0:01:20.3]} 28... fxe4 {[%clk 0:00:25.1]} 29. Be2 {[%clk
0:00:57.7]} 29... f6 {[%clk 0:00:18.8]} 30. Rg1 {[%clk 0:00:57.1]} 30... Rg8
{[%clk 0:00:18.1]} 31. Bxh5 {[%clk 0:00:45.5]} 31... Rxg1 {[%clk 0:00:15.6]} 32.
Rxg1 {[%clk 0:00:36.3]} 32... Nxa4 {[%clk 0:00:15.1]} 33. Rg6 {[%clk 0:00:28.8]}
33... Rf8 {[%clk 0:00:09]} 34. Rg7 {[%clk 0:00:12.1]} 34... Nxb2 {[%clk
0:00:08.1]} 35. Ra7 {[%clk 0:00:10.9]} 35... a4 {[%clk 0:00:08.1]} 36. Ra6+
{[%clk 0:00:09.7]} 36... Kc7 {[%clk 0:00:07.3]} 37. Be2 {[%clk 0:00:05.5]} 37...
b3 {[%clk 0:00:06.5]} 38. h5 {[%clk 0:00:05.2]} 38... c3 {[%clk 0:00:06.5]} 39.
Ra5 {[%clk 0:00:04.4]} 39... c2 {[%clk 0:00:05]} 40. Rc5+ {[%clk 0:00:03.7]}
40... Kd6 {[%clk 0:00:04.7]} 41. Bb5 {[%clk 0:00:04.1]} 41... a3 {[%clk
0:00:04.1]} 42. Rc6+ {[%clk 0:00:04.4]} 42... Ke7 {[%clk 0:00:04]} 43. Rc7+
{[%clk 0:00:04.5]} 43... Ke6 {[%clk 0:00:04.3]} 44. Rc6+ {[%clk 0:00:04.5]}
44... Kf5 {[%clk 0:00:04.1]} 45. Rc5 {[%clk 0:00:03.8]} 45... Kg4 {[%clk
0:00:02.3]} 46. Bd7+ {[%clk 0:00:04]} 46... Kf3 {[%clk 0:00:02]} 47. Rc3 {[%clk
0:00:01.4]} 47... a2 {[%clk 0:00:01.9]} 48. Bg4+ {[%clk 0:00:01.8]} 48... Kxg4
{[%clk 0:00:01.1]} 49. Rxb3 {[%clk 0:00:02.5]} 49... Kf5 {[%clk 0:00:01.8]} 50.
Rxb2 {[%clk 0:00:02.9]} 50... c1=Q {[%clk 0:00:02.3]} 51. Rxa2 {[%clk 0:00:03]}
51... Kg4 {[%clk 0:00:02.6]} 0-1